Cogmind - Beta 11.1 @@@ ROGUE MODE // 2022.08.18 @ 01:19:57 Player: Pogmind Result: Self-destructed Performance ------------- Evolutions (3) 1500 Regions Visited (12) 2400 Robots Destroyed (204) 1020 Value Destroyed (6138) 6138 Prototype IDs (60) 1200 Alien Tech Used (0) 0 Bonus (1127) 1127 TOTAL SCORE: 13385 Bonus ------- Follower Combat Kills 1048 Aligned with FarCom 300 Met Data Miner 300 Friendly Fire -521 Cogmind --------- Core Integrity 636/700 Matter 240/300 Energy 280/280 System Corruption 0% Temperature Cool (0) Movement Rolling (100) Location -7/Data Miner Parts ------- > --- POWER (1) -------- Heavy Ion Engine > --- PROPULSION (2) --- Armored Huge Wheel > --- UTILITY (8) ------ Experimental Targeting Computer Experimental Targeting Computer > --- WEAPON (2) ------- Mini Assault Cannon Mini Assault Cannon > --- INVENTORY (5) ---- Experimental Heat Sink Advanced Transmission Jammer Improved Weapon Shielding Neutron Cannon Peak State ------------ > --- POWER ------------ Heavy Ion Engine > --- PROPULSION ------- Armored Huge Wheel > --- UTILITY ---------- Huge Storage Unit Experimental Targeting Computer Army-in-a-Box > --- WEAPON ----------- Tearclaws > --- INVENTORY -------- Heavy Ion Engine Armored Huge Wheel Armored Huge Wheel Experimental Heat Sink Large Battery 0b10 Alert Chip Experimental Targeting Computer Experimental Core Analyzer Improved Armor Integrity Analyzer Advanced Transmission Jammer Improved Weapon Shielding Improved Weapon Shielding Hardened Heavy Armor Plating Reactive Plating System Purifier EM Pulse Cannon EM Pulse Cannon Improved EM Pulse Cannon Improved EM Pulse Cannon Mini Assault Cannon Improved Grenade Launcher Heavy Flail [Rating: 93] Favorites ----------- Power Heavy Ion Engine Engine Heavy Ion Engine Power Core Light Nuclear Core Propulsion Light Treads Treads Light Treads Leg Enhanced Flexi-carbon Leg Wheel Armored Huge Wheel Flight Unit Improved VTOL Module Utility Huge Storage Unit Device Improved Heat Sink Storage Huge Storage Unit Processor Experimental Targeting Computer Hackware Hacking Suite Protection Light Armor Plating Weapon Improved EM Shotgun Energy Gun Improved EM Shotgun Energy Cannon EM Pulse Cannon Ballistic Gun Heavy Assault Rifle Ballistic Cannon Mini Assault Cannon Launcher Improved Grenade Launcher Special Weapon Plasma Cutter Impact Weapon Heavy Flail Slashing Weapon Axe Build | -11 -10 -10 -9 -9 -9 -8 -8 -8 -7 -7 -7 -7 ------- Run | Scr Mat Min Mat Min Exi Min Mat Sto Fac Low Low Dat Slots Evolved 6 | . . . 2 . . . 2 . 2 . . . Power . | . . . . . . . . . . . . . Propulsion . | . . . . . . . . . . . . . Utility 6 | . . . 2 . . . 2 . 2 . . . Weapon . | . . . . . . . . . . . . . Parts Attached 293 | 7 7 17 37 7 60 10 67 40 17 9 8 7 Power 22 | 1 1 2 5 . 7 . 2 4 . . . . Engine 15 | 1 1 1 3 . 4 . 1 4 . . . . Core 7 | . . 1 2 . 3 . 1 . . . . . Reactor . | . . . . . . . . . . . . . Propulsion 41 | 2 2 4 3 3 4 2 11 7 1 . . 2 Treads 32 | 2 2 4 3 3 4 2 8 4 . . . . Leg 1 | . . . . . . . . . . . . 1 Wheel 7 | . . . . . . . 3 2 1 . . 1 Hover . | . . . . . . . . . . . . . Flight 1 | . . . . . . . . 1 . . . . Utility 110 | 2 1 3 11 4 34 4 20 12 4 7 5 3 Device 46 | 1 . 3 3 3 14 2 8 2 2 4 2 2 Storage 8 | 1 1 . 1 . 3 . . 1 . . . 1 Processor 3 | . . . 1 . . . . 1 . . 1 . Hackware 14 | . . . . . 13 . 1 . . . . . Protection 39 | . . . 6 1 4 2 11 8 2 3 2 . Artifact . | . . . . . . . . . . . . . Weapon 120 | 2 3 8 18 . 15 4 34 17 12 2 3 2 Energy Gun 36 | . . 4 5 . 3 3 13 8 . . . . Energy Cannon 22 | . . . . . 2 . 11 3 5 . . 1 Ballistic Gun 16 | 2 2 1 7 . 3 . . 1 . . . . Ballistic Cannon 9 | . . . . . . . 1 . 4 1 2 1 Launcher 5 | . . . 1 . . . 2 1 . 1 . . Special Weapon 5 | . . . 1 . 3 . 1 . . . . . Impact Weapon 8 | . 1 3 1 . . . . . 3 . . . Slashing Weapon 19 | . . . 3 . 4 1 6 4 . . 1 . Piercing Weapon . | . . . . . . . . . . . . . Special Melee Weapon . | . . . . . . . . . . . . . Unidentified Prototypes 23 | . . . 2 1 6 . 5 5 . . . 4 Corrupted Parts 4 | . . 2 . . . 2 . . . . . . System Corruption 18 | . . 8 . . . 10 . . . . . . Parts Lost 41 | . 1 2 5 . 7 2 21 3 . . . . Power 3 | . . . . . 2 . 1 . . . . . Propulsion 11 | . . 2 1 . 2 . 5 1 . . . . Utility 18 | . . . 4 . 3 1 10 . . . . . Weapon 9 | . 1 . . . . 1 5 2 . . . . Highest Loss Streak 5 | . 1 2 3 . 3 1 5 1 . . . . To Critical Strikes 2 | . . . . . 2 . . . . . . . Average Slot Usage (%) 89 | . 100 99 98 99 85 93 92 95 83 57 59 56 Engine 4 | . 14 6 2 . 2 . . 9 7 7 7 7 Core 5 | . . 7 8 11 8 11 8 . . . . . Treads 17 | . 28 27 22 22 22 22 17 17 . . . . Wheel 1 | . . . . . . . . . 7 7 7 7 Device 11 | . 14 14 7 21 12 8 17 8 7 8 8 7 Storage 9 | . 14 14 11 11 11 11 9 9 7 7 7 1 Processor 2 | . . . 2 . . . . 1 7 7 8 15 Hackware 1 | . . . . . . . 3 9 6 . . . Protection 13 | . . . 21 11 7 17 17 22 22 3 3 1 Energy Gun 8 | . . 24 2 22 9 17 11 13 . . . . Energy Cannon 2 | . . . . . 5 . 4 3 9 . . . Ballistic Gun 3 | . 27 2 11 . 1 2 . . . . . . Ballistic Cannon 1 | . . . . . . . . . 2 14 14 15 Special Weapon 1 | . . . 3 . 3 . . . . . . . Slashing Weapon 1 | . . . 3 . 1 1 1 . . . . . Naked Turns . | . . . . . . . . . . . . . Heaviest Build 176 | 12 49 52 100 100 122 122 126 125 176 176 176 119 Greatest Support 43 | 40 40 40 40 40 40 40 43 40 28 28 28 28 Greatest Overweight (x) 12 | . 1 1 2 2 3 3 12 5 6 6 6 4 Average Overweight (x) 2 | . . 1 1 2 1 2 3 2 4 5 5 3 Largest Inventory Capacity 25 | 8 20 20 25 25 25 25 25 25 25 25 25 25 Average Capacity 23 | 6 17 20 24 25 20 25 25 25 25 25 25 7 Most Carried 25 | 4 20 20 25 25 25 25 25 25 25 25 25 25 Average Carried 22 | 2 12 19 24 24 19 24 24 24 24 23 24 7 Final Capacity 25 | 8 20 20 25 25 25 25 25 25 25 25 25 5 Final Carried 25 | 4 20 20 25 25 25 25 25 25 24 24 25 4 Class Distribution -------------------- 61% | Scavenger-Mutant 38% | Mutant Dominant Class ---------------- Mutant | -10/Materials Mutant | -10/Mines Scavenger-Mutant | -9/Materials Scavenger-Mutant | -9/Mines Mutant | -9/Exiles Scavenger-Mutant | -8/Mines Scavenger-Mutant | -8/Materials Scavenger-Mutant | -8/Storage Mutant | -7/Factory Mutant | -7/Lower Caves Mutant | -7/Lower Caves Mutant | -7/Data Miner Resources | -11 -10 -10 -9 -9 -9 -8 -8 -8 -7 -7 -7 -7 ----------- Run | Scr Mat Min Mat Min Exi Min Mat Sto Fac Low Low Dat Matter Collected 4023 | 257 269 120 646 27 649 145 633 385 164 452 260 16 Remotely . | . . . . . . . . . . . . . Salvage Created 9229 | 55 348 496 1483 213 712 665 1931 2322 553 98 353 . Parts 532 | 6 28 20 87 7 87 34 101 109 31 7 15 . Haulers Intercepted 4 | . . . 4 . . . . . . . . . Recyclers Shooed 9 | . 2 . 3 1 . . 2 1 . . . . Parts Field Recycled . | . . . . . . . . . . . . . Retrieved Matter . | . . . . . . . . . . . . . Parts Self-Destructed 36 | . . . . . . . . . . 13 23 . Prevented 5 | . . . . . . . . . . 2 3 . Kills | -11 -10 -10 -9 -9 -9 -8 -8 -8 -7 -7 -7 -7 ------- Run | Scr Mat Min Mat Min Exi Min Mat Sto Fac Low Low Dat Combat Hostiles Destroyed 144 | . 7 9 20 3 6 13 30 33 9 6 8 . Melee 2 | . 1 . . . 1 . . . . . . . Guns 95 | . 5 9 17 2 4 11 20 27 . . . . Cannons 20 | . . . . . 1 . 3 . 6 2 8 . AOE 15 | . . . 3 1 . 2 1 3 1 4 . . Classes Destroyed 20 | 1 5 3 1 1 4 1 2 . 1 . 1 . Worker 11 | . 1 . 3 . . . 1 5 1 . . . Builder 7 | . 1 . . . . . 2 4 . . . . Tunneler 2 | 2 . . . . . . . . . . . . Hauler 4 | . . . 4 . . . . . . . . . Recycler 12 | . . 2 5 1 . 1 1 2 . . . . Operator 5 | . 2 . 2 . . . . 1 . . . . Drone 3 | . . . . . 2 . . . . . 1 . Turret 1 | . . . . . 1 . . . . . . . Watcher 13 | . 3 . 2 . . . 4 2 2 . . . Swarmer 24 | . . 3 6 . . 4 4 3 . 4 . . Grunt 64 | . 7 5 9 2 . 6 11 18 3 1 2 . Brawler 8 | . . . . 1 . 2 1 . 1 . 3 . Duelist 2 | . . . . . . . 1 . . . 1 . Protector 1 | . . . . . . . . . . . 1 . Sentry 30 | . . 1 5 . . . 9 12 2 . 1 . Hunter 5 | . . . . . . 1 3 . 1 . . . Programmer 3 | . . . . . . . . . 2 1 . . Heavy 1 | . . . . . . . 1 . . . . . Zionite 8 | . . . . . 8 . . . . . . . Decomposer 2 | . . . . . . . . . . 2 . . Assembled 5 | . . . . . 5 . . . . . . . Best Kill Streak 9 | 2 2 3 4 3 4 3 5 9 4 4 5 . Combat Bots Only 6 | . 2 3 3 3 4 3 4 6 4 4 5 . Max Kills in Single Turn 2 | 1 1 2 2 1 1 2 2 2 1 1 2 . Gunslinging 1 | . . 1 . . . 1 1 1 . . . . Exploded 2 | . . . 2 1 . 1 1 1 1 1 . . Melee 1 | . 1 . . . 1 . . . . . . . Uniques/NPCs Destroyed 4 | . . . . . 4 . . . . . . . 8R-AWN (-9/Exiles) EX-BIN (-9/Exiles) EX-DEC (-9/Exiles) EX-HEX (-9/Exiles) Combat | -11 -10 -10 -9 -9 -9 -8 -8 -8 -7 -7 -7 -7 -------- Run | Scr Mat Min Mat Min Exi Min Mat Sto Fac Low Low Dat Damage Taken 9131 | . 690 295 739 88 1961 862 2161 1412 233 240 450 . Core 953 | . 147 65 73 34 212 55 210 93 26 20 18 . Absorbed by Shields 3 | . . . . . . . . . 3 . . . Redirected to Shielding 10 | . . . . . . . . . 10 . . . Regen/Repaired (Parts) 1152 | . . . . . . . 369 783 . . . . Core Remaining (%) 41 | 100 . 15 . . . 6 . 44 . . . . Volleys Fired 531 | 8 63 20 65 6 114 35 88 72 16 28 15 1 Largest 2 | 2 2 2 2 2 2 2 2 2 2 2 2 1 Hottest 132 | 40 40 90 98 90 95 90 126 126 132 96 96 48 Shots Fired 897 | 16 126 40 108 12 124 50 167 144 32 47 30 1 Gun 626 | 16 126 40 88 12 18 50 134 142 . . . . Cannon 200 | . . . . . 60 . 32 2 32 43 30 1 Launcher 6 | . . . 2 . . . . . . 4 . . Special 65 | . . . 18 . 46 . 1 . . . . . Kinetic 319 | 16 126 . 77 . . 20 . . 6 43 30 1 Thermal 127 | . . . 29 . 98 . . . . . . . Explosive 6 | . . . 2 . . . . . . 4 . . Electromagnetic 444 | . . 40 . 12 26 30 166 144 26 . . . Robot Hit Streak 24 | 4 10 16 24 10 12 14 14 19 12 14 13 1 Robot Miss Streak 7 | 1 2 3 3 1 7 4 5 3 1 . 2 . Penetration Max 1 | . . . . . . 1 . . . . . . Secondary Targets 13 | . . 3 1 . . 2 2 5 . . . . Max Gunslinging Chain 1 | . . 1 1 . . 1 1 1 . . . . Shots Hit Robots 726 | 11 90 38 89 12 117 42 137 135 26 9 19 1 Core Hits 378 | 4 31 21 43 8 45 28 74 92 12 7 13 . Critical Kills 4 | . 1 . 3 . . . . . . . . . Critical Parts Destroyed 1 | . 1 . . . . . . . . . . . Critical Strikes 15 | . 2 . 5 . 4 . . . . 1 3 . Destroy 3 | . . . 3 . . . . . . . . . Blast 4 | . . . . . . . . . . 1 3 . Smash 2 | . 2 . . . . . . . . . . . Sever 6 | . . . 2 . 4 . . . . . . . Melee Attacks 105 | . 6 3 25 . 48 3 3 14 3 . . . Impact 13 | . 6 3 1 . . . . . 3 . . . Slashing 92 | . . . 24 . 48 3 3 14 . . . . Piercing . | . . . . . . . . . . . . . Sneak Attacks 21 | . . 2 14 . . 1 . 3 1 . . . Combat Hostiles . | . . . . . . . . . . . . . Follow-up Attacks . | . . . . . . . . . . . . . Damage Inflicted 17312 | 110 932 681 2541 361 2696 1023 3109 3587 957 698 588 29 Guns 7933 | 110 780 481 1020 206 234 769 1901 2432 . . . . Cannons 3247 | . . . . . 932 . 716 33 718 231 588 29 Explosions 2468 | . . 44 271 138 . 162 477 792 117 467 . . Melee 3010 | . 112 144 1130 . 1122 90 . 290 122 . . . Ramming 157 | . 40 12 31 17 . 2 15 40 . . . . Kinetic 3006 | 110 780 . 827 . . 293 . . 148 231 588 29 Thermal 3134 | . . 44 282 138 1208 162 391 792 117 . . . Explosive 824 | . . . 271 . . . 86 . . 467 . . Electromagnetic 7181 | . . 481 . 206 366 476 2617 2465 570 . . . Impact 378 | . 112 144 . . . . . . 122 . . . Slashing 2632 | . . . 1130 . 1122 90 . 290 . . . . Piercing . | . . . . . . . . . . . . . Highest Corruption 10 | . . 8 . . 6 10 . 1 . . . . Average Corruption 5 | . . 5 . . 5 7 . 1 . . . . Corruption Purged 7 | . . . . . 6 . . 1 . . . . Corruption Blocked . | . . . . . . . . . . . . . Effects 9 | . . . . . 9 . . . . . . . Message Errors 1 | . . . . . 1 . . . . . . . Matter Fused 3 | . . . . . 3 . . . . . . . Heat Flow Errors 1 | . . . . . 1 . . . . . . . Energy Discharges 2 | . . . . . 2 . . . . . . . Data Loss (minor) 1 | . . . . . 1 . . . . . . . Data Loss (major) 1 | . . . . . 1 . . . . . . . Overload Shots . | . . . . . . . . . . . . . Overflow Damage 596 | . 34 126 125 . 71 27 9 81 82 40 1 . Projectiles 82 | . . . . . 60 . . . . 21 1 . Explosions 136 | . . 24 6 . . 27 9 51 . 19 . . Melee 378 | . 34 102 119 . 11 . . 30 82 . . . Knockbacks 10 | . 4 . . . . . . . 1 2 2 1 Impact 3 | . 3 . . . . . . . . . . . Kinetic 6 | . . . . . . . . . 1 2 2 1 Secondary 1 | . 1 . . . . . . . . . . . Self-Inflicted Damage 476 | . . 21 22 33 . . 173 222 . 5 . . Shots 12 | . . 1 1 1 . . 3 5 . 1 . . Rammed 24 | . 5 4 4 4 . 1 2 4 . . . . Targets Rammed 28 | . 7 4 5 4 . 1 2 5 . . . . Kicked . | . . . . . . . . . . . . . Crushed 4 | . 2 . 1 . . . . 1 . . . . Highest Temperature 386 | . 18 102 96 . 242 12 386 36 87 60 258 . Average Temperature 40 | . 9 29 22 . 63 5 74 10 33 20 99 . Received Heat Transfer 2784 | . 345 129 249 30 . 306 837 612 87 9 180 . Effects 1 | . . . . . . . 1 . . . . . Shutdowns 1 | . . . . . . . 1 . . . . . Siege Activations . | . . . . . . . . . . . . . Robots Corrupted 15 | . . . . . 3 . 6 4 2 . . . Combat Hostiles 11 | . . . . . . . 6 3 2 . . . Parts Fried 43 | . . 1 . 1 . . 19 15 7 . . . Impact Corruptions 6 | . 1 3 . . . . . . 2 . . . Robots Melted . | . . . . . . . . . . . . . Combat Hostiles . | . . . . . . . . . . . . . Parts Melted 7 | . . . . . 7 . . . . . . . Heat Transferred 5076 | . . 50 629 200 2497 200 450 950 100 . . . Parts Sabotaged . | . . . . . . . . . . . . . Parts Stolen . | . . . . . . . . . . . . . Parts Stripped . | . . . . . . . . . . . . . Power Chain Reactions 23 | . . 1 . 2 . 2 6 11 1 . . . Missiles Intercepted . | . . . . . . . . . . . . . Alert | -11 -10 -10 -9 -9 -9 -8 -8 -8 -7 -7 -7 -7 ------- Run | Scr Mat Min Mat Min Exi Min Mat Sto Fac Low Low Dat Peak Influence 359 | 10 176 100 343 208 . 171 224 359 207 . . . Initial 126 | . 6 1 . 126 . . 13 59 116 . . . Average 124 | 3 34 27 226 40 . 38 85 173 127 . . . Maximum Alert Level 1 | . . . 1 1 . . 1 1 1 . . . Low Security (%) 73 | 100 100 100 32 84 . 100 95 59 95 . . . Level 1 26 | . . . 67 15 . . 4 40 4 . . . Level 2 . | . . . . . . . . . . . . . Level 3 . | . . . . . . . . . . . . . Level 4 . | . . . . . . . . . . . . . Level 5 . | . . . . . . . . . . . . . High Security . | . . . . . . . . . . . . . Max Security . | . . . . . . . . . . . . . Squads Dispatched 19 | . 1 . 6 1 . . 4 4 2 . 1 . Investigation 7 | . . . 4 1 . . . 2 . . . . Extermination 2 | . . . . . . . . . 2 . . . Reinforcement 9 | . 1 . 2 . . . 4 2 . . . . Assault 1 | . . . . . . . . . . . 1 . Garrison . | . . . . . . . . . . . . . Intercept . | . . . . . . . . . . . . . Searches Triggered . | . . . . . . . . . . . . . Construction Impeded . | . . . . . . . . . . . . . Haulers Reinforced . | . . . . . . . . . . . . . Active Scanning Responses . | . . . . . . . . . . . . . Cargo Convoy Interrupts . | . . . . . . . . . . . . . Stealth | -11 -10 -10 -9 -9 -9 -8 -8 -8 -7 -7 -7 -7 --------- Run | Scr Mat Min Mat Min Exi Min Mat Sto Fac Low Low Dat Distress Signals 9 | . . 1 2 . . . 3 3 . . . . Communications Jammed 4 | . . . . . . . 4 . . . . . Distress Signals 3 | . . . . . . . 3 . . . . . Times Spotted 303 | . 20 13 49 3 58 21 48 46 11 9 22 3 Peak Tracking Total 12 | . 3 5 4 3 9 4 4 5 4 4 12 1 Tactical Retreats 39 | . . 1 2 . 27 2 4 1 . 2 . . Traps | -11 -10 -10 -9 -9 -9 -8 -8 -8 -7 -7 -7 -7 ------- Run | Scr Mat Min Mat Min Exi Min Mat Sto Fac Low Low Dat Traps Triggered 8 | . . . 2 . . . 2 1 3 . . . Indirectly . | . . . . . . . . . . . . . Trap Hack Attempts . | . . . . . . . . . . . . . Triggered . | . . . . . . . . . . . . . Disarmed . | . . . . . . . . . . . . . Reprogrammed . | . . . . . . . . . . . . . Reused . | . . . . . . . . . . . . . Traps Extracted . | . . . . . . . . . . . . . Installed . | . . . . . . . . . . . . . Triggered 2 | . . . . . . . . 2 . . . . Machines | -11 -10 -10 -9 -9 -9 -8 -8 -8 -7 -7 -7 -7 ---------- Run | Scr Mat Min Mat Min Exi Min Mat Sto Fac Low Low Dat Machines Disabled 19 | . . . . . 7 . 6 3 1 . 1 1 Max in Single Turn 3 | . . . . . 1 . 3 1 1 . . 1 Garrison Access 2 | . . . . . . . 1 1 . . . . Machines Sabotaged . | . . . . . . . . . . . . . Garrisons Compromised . | . . . . . . . . . . . . . Overloaded Fab Kills . | . . . . . . . . . . . . . Hacking | -11 -10 -10 -9 -9 -9 -8 -8 -8 -7 -7 -7 -7 --------- Run | Scr Mat Min Mat Min Exi Min Mat Sto Fac Low Low Dat Machines Accessed 57 | . 8 1 9 2 2 . 13 11 5 . 2 4 Terminals 35 | . 7 1 7 . . . 9 8 3 . . . Fabricators . | . . . . . . . . . . . . . Repair Stations 2 | . . . . . . . 1 1 . . . . Recycling Units 7 | . 1 . 2 . . . 2 1 1 . . . Scanalyzers 1 | . . . . . . . . . 1 . . . Garrison Access 2 | . . . . . . . 1 1 . . . . Total Hacks 182 | . 22 1 30 2 2 . 50 29 12 . 5 29 Successful 129 | . 13 . 17 2 2 . 30 25 6 . 5 29 Failed 52 | . 9 1 13 . . . 19 4 6 . . . Catastrophic 4 | . 1 1 1 . . . 1 . . . . . Database Lockouts 1 | . . . . . . . 1 . . . . . Manual 95 | . 20 2 17 . 1 . 30 15 10 . . . Terminals 104 | . 20 1 21 . . . 35 18 9 . . . Fabricators . | . . . . . . . . . . . . . Repair Stations 13 | . . . . . . . 7 6 . . . . Recycling Units 24 | . 2 . 9 . . . 7 4 2 . . . Scanalyzers 1 | . . . . . . . . . 1 . . . Garrison Access 2 | . . . . . . . 1 1 . . . . Terminal Hacks 80 | . 8 . 8 2 2 . 14 11 1 . 5 29 Record 16 | . . . . . 1 . . . . . 4 11 Part Schematic 15 | . 3 . . . . . . 1 . . . 11 Robot Schematic 4 | . . . . . . . . . . . . 4 Robot Analysis 8 | . 3 . 1 . . . 3 1 . . . . Prototype ID Bank 4 | . . . . . . . 1 . . . . 3 Open Door 6 | . . . . 2 . . . 3 . . 1 . Branch Access Points 2 | . . . . . . . 1 . 1 . . . Terminal Index 1 | . . . . . . . 1 . . . . . Alert Level 8 | . . . 3 . . . 4 1 . . . . Unreport Threat 4 | . . . 1 . . . 1 2 . . . . Locate Traps 7 | . 1 . 2 . . . 2 2 . . . . Hauler Manifests 4 | . 1 . 1 . . . 1 1 . . . . EX-Prototype ID Bank 1 | . . . . . 1 . . . . . . . Fabricator Hacks . | . . . . . . . . . . . . . Repair Station Hacks 12 | . . . . . . . 6 6 . . . . Scan Component 6 | . . . . . . . 3 3 . . . . Repair 6 | . . . . . . . 3 3 . . . . Recycling Unit Hacks 4 | . 1 . 1 . . . . 1 1 . . . Retrieve Components 4 | . 1 . 1 . . . . 1 1 . . . Scanalyzer . | . . . . . . . . . . . . . Garrison Access Hacks 2 | . . . . . . . 1 1 . . . . Seal Access 2 | . . . . . . . 1 1 . . . . Unauthorized Hacks 31 | . 4 . 8 . . . 9 6 4 . . . Terminals 19 | . 4 . 4 . . . 5 3 3 . . . Assimilate 2 | . 1 . . . . . 1 . . . . . Botnet 12 | . 2 . 3 . . . 2 3 2 . . . Disrupt 1 | . . . . . . . 1 . . . . . Operators 4 | . 1 . 1 . . . 1 . 1 . . . Fabricators . | . . . . . . . . . . . . . Repair Stations . | . . . . . . . . . . . . . Recycling Units 12 | . . . 4 . . . 4 3 1 . . . Reject 4 | . . . 1 . . . 2 1 . . . . Recyclers 1 | . . . . . . . . . 1 . . . Mask 4 | . . . 1 . . . 2 1 . . . . Tunnel 3 | . . . 2 . . . . 1 . . . . Scanalyzers . | . . . . . . . . . . . . . Garrison Access . | . . . . . . . . . . . . . Data Cores Recovered . | . . . . . . . . . . . . . Used . | . . . . . . . . . . . . . Hacking Detections 41 | . 8 1 8 . . . 11 8 5 . . . Full Trace Events . | . . . . . . . . . . . . . Feedback Events . | . . . . . . . . . . . . . Feedback Blocked . | . . . . . . . . . . . . . Robot Schematics Acquired 4 | . . . . . . . . . . . . 4 Robots Built . | . . . . . . . . . . . . . Authchips . | . . . . . . . . . . . . . Time . | . . . . . . . . . . . . . Total Robot Build Rating . | . . . . . . . . . . . . . Part Schematics Acquired 15 | . 3 . . . . . . 1 . . . 11 Parts Built . | . . . . . . . . . . . . . Authchips . | . . . . . . . . . . . . . Time . | . . . . . . . . . . . . . Total Part Build Rating . | . . . . . . . . . . . . . Parts Repaired 6 | . . . . . . . 3 3 . . . . Time 412 | . . . . . . . 241 171 . . . . Parts Recycled . | . . . . . . . . . . . . . Recycled Matter . | . . . . . . . . . . . . . Retrieved Matter . | . . . . . . . . . . . . . Retrieved Components 36 | . 10 . 9 . . . . 10 7 . . . Parts Scanalyzed . | . . . . . . . . . . . . . Part Schematics Acquired . | . . . . . . . . . . . . . Parts Damaged . | . . . . . . . . . . . . . Bothacking | -11 -10 -10 -9 -9 -9 -8 -8 -8 -7 -7 -7 -7 ------------ Run | Scr Mat Min Mat Min Exi Min Mat Sto Fac Low Low Dat Used RIF Installer . | . . . . . . . . . . . . . Robots Hacked . | . . . . . . . . . . . . . Non-combat . | . . . . . . . . . . . . . Combat . | . . . . . . . . . . . . . Robot Hacks Applied . | . . . . . . . . . . . . . Relay Couplers Released . | . . . . . . . . . . . . . Fabnet Peak Effective % . | . . . . . . . . . . . . . Robots Rewired 3 | . . . . . . . 1 . . . 2 . Allies Hacked . | . . . . . . . . . . . . . Hacks Repelled . | . . . . . . . . . . . . . Allies | -11 -10 -10 -9 -9 -9 -8 -8 -8 -7 -7 -7 -7 -------- Run | Scr Mat Min Mat Min Exi Min Mat Sto Fac Low Low Dat Total Allies 9 | . 1 5 . . . . 1 . . . 2 . Largest Group 3 | . 1 3 3 . . . 1 . . . 2 1 Highest-Rated Group 62 | . 10 41 40 . . . 19 . . . 62 32 Highest-Rated Ally 32 | . 10 31 16 . . . 19 . . . 32 32 Total Orders 150 | . 1 . 2 . 6 . 1 . . 25 17 98 STAY 41 | . 1 . 1 . 1 . 1 . . 1 . 36 ROAM 1 | . . . . . 1 . . . . . . . FOLLOW 9 | . . . 1 . 1 . . . . 3 . 4 RETURN 99 | . . . . . 3 . . . . 21 17 58 Ally Attacks 369 | . . 15 82 . . 4 . . . 27 118 123 Total Damage 5458 | . . 292 894 . . 202 . . . 552 1983 1535 Kills 42 | . . 2 14 . . 4 . . . 4 14 4 Allies Corrupted 4 | . . . . . 4 . . . . . . . Allies Melted . | . . . . . . . . . . . . . Turrets Deployed 1 | . . . . . . 1 . . . . . . Intel | -11 -10 -10 -9 -9 -9 -8 -8 -8 -7 -7 -7 -7 ------- Run | Scr Mat Min Mat Min Exi Min Mat Sto Fac Low Low Dat Robot Analysis Total 8 | . 3 . 1 . . . 3 1 . . . . Derelict Logs Recovered 7 | . . 3 . 2 . . . . . . 2 . Drone Launches 209 | . . . . . 24 . . . 8 84 18 75 Drone Recoveries 173 | . . . . . 8 . . . . 82 17 66 Exploration | -11 -10 -10 -9 -9 -9 -8 -8 -8 -7 -7 -7 -7 ------------- Run | Scr Mat Min Mat Min Exi Min Mat Sto Fac Low Low Dat Turns Passed 44053 | 113 2226 1809 7936 2114 6654 2340 8498 5611 1150 2399 1910 1293 Spaces Moved 14503 | 49 880 629 2240 643 2180 673 2282 1418 593 1161 991 764 Core 3 | 3 . . . . . . . . . . . . Treads 10688 | 46 880 629 2240 643 2180 673 2106 1291 . . . . Legs . | . . . . . . . . . . . . . Wheels 3812 | . . . . . . . 176 127 593 1161 991 764 Hover . | . . . . . . . . . . . . . Flight . | . . . . . . . . . . . . . Fastest Speed 50 | 50 160 240 240 320 160 320 260 155 160 160 160 100 Average Speed 269 | 153 219 240 314 320 268 325 340 322 160 185 182 146 Slowest Speed 400 | 160 240 240 320 320 400 400 400 400 190 190 190 160 Overloaded Moves . | . . . . . . . . . . . . . Propulsion Burnouts . | . . . . . . . . . . . . . Robots Hopped . | . . . . . . . . . . . . . Cave-ins Triggered . | . . . . . . . . . . . . . Exploration Rate (%) 82 | 5 99 99 99 99 91 95 99 98 19 98 98 79 Regions Visited 12 Branch Regions 8 Pre-discovered Areas 8 | . . . 2 2 1 . . 1 . . 1 1 Known Exits Taken 3 | . . . . . . 1 1 . 1 . . . Unknown Exits Taken 9 | 1 1 1 1 1 1 . . 1 . 1 1 . Scrap Searched 10 | . . 1 . 2 . 2 . . . 2 3 . Spaces Dug 21 | . . 1 5 . . . 2 1 2 10 . . Terrain Destroyed 217 | . . 6 23 8 4 13 35 57 3 65 3 . Melee 11 | . . 1 5 . . . 2 1 2 . . . Projectile 32 | . . . . . 4 . . . . 25 3 . AOE 174 | . . 5 18 8 . 13 33 56 1 40 . . Terrain Rammed . | . . . . . . . . . . . . . Walls Destroyed . | . . . . . . . . . . . . . Machines Disabled . | . . . . . . . . . . . . . Actions | -11 -10 -10 -9 -9 -9 -8 -8 -8 -7 -7 -7 -7 --------- Run | Scr Mat Min Mat Min Exi Min Mat Sto Fac Low Low Dat Total 18421 | 69 1052 876 2959 687 2739 764 2851 2288 753 1362 1069 952 Wait 2471 | 2 66 184 519 3 213 35 338 686 87 153 36 149 Move 14491 | 48 879 628 2239 642 2179 672 2281 1417 592 1160 990 764 Hop . | . . . . . . . . . . . . . Pick Up 190 | 4 19 11 33 8 43 5 32 17 9 5 4 . Fast Attach 107 | 7 . . 14 3 30 2 26 16 1 1 2 5 Attach 72 | . 1 4 8 . 8 2 20 13 2 6 6 2 Detach 47 | . . . 4 . 23 . 5 4 2 1 1 7 Swap 114 | . 6 13 15 4 22 6 21 11 14 2 . . Drop 234 | . 5 9 32 17 59 3 35 28 11 6 5 24 Fire 531 | 8 63 20 65 6 114 35 88 72 16 28 15 1 Melee 105 | . 6 3 25 . 48 3 3 14 3 . . . Ram . | . . . . . . . . . . . . . Kick . | . . . . . . . . . . . . . Crush 28 | . 7 4 5 4 . 1 2 5 . . . . Escape Stasis 16 | . . . . . . . . . 16 . . . Rewire 15 | . . . . . . . . 5 . . 10 . Trap . | . . . . . . . . . . . . . Miscellaneous . | . . . . . . . . . . . . . Route ------- -11/Scrapyard -10/Materials (discovered 4 exits: *Mat x3 / *Min) -10/Mines (discovered 2 exits: *Mat x2) -9/Materials (discovered 4 exits: *Mat x3 / *Min) -9/Mines (discovered 3 exits: *Mat x2 / *Exi) -9/Exiles (discovered 2 exits: [*Min x2]) -8/Mines (discovered 2 exits: *Mat x2) -8/Materials (discovered 5 exits: *Fac x3 / *Sto x2) -8/Storage -7/Factory (discovered 2 exits: *Low x2) -7/Lower Caves -7/Lower Caves (discovered 2 exits: [*Fac] / *Dat) -7/Data Miner (discovered 1 exit: [*Pro]) History --------- Turn | Location | Event 6 | -11/Scrapyard | Discovered new exit (range 16) 114 | -11/Scrapyard | Entered Materials 313 | -10/Materials | Build established: Mutant 353 | -10/Materials | Core integrity fell below 50% 435 | -10/Materials | Discovered new exit (range 7) 589 | -10/Materials | Discovered new exit (range 10) 1018 | -10/Materials | Discovered new exit (range 14) 1622 | -10/Materials | Discovered new exit (range 13) 2340 | -10/Materials | Entered Mines 2341 | -10/Mines | Assembled infested the area 2346 | -10/Mines | Assisted by a Guerilla fighting off Assembled 2896 | -10/Mines | Learned location of 1 exit from Materials 2958 | -10/Mines | Learned Materials security intel 3008 | -10/Mines | Discovered new exit (range 11) 3216 | -10/Mines | Joined a pair of Derelicts in attacking an 0b10 outpost 3319 | -10/Mines | Core integrity fell below 20% 3362 | -10/Mines | Learned 4 Materials zone layouts 3665 | -10/Mines | Assisted by bots powering up and referring to "LRC-V3" 3823 | -10/Mines | Discovered new exit (range 8) 4149 | -10/Mines | Entered Materials 4149 | -9/Materials | Accompanied by 3 allies 4149 | -9/Materials | Evolved 2 slots: Utility x2 4150 | -9/Materials | Identified exit to Materials 4454 | -9/Materials | Build established: Scavenger-Mutant 6434 | -9/Materials | Discovered new exit (range 13) 6990 | -9/Materials | Discovered exit to Materials (range 7) 7651 | -9/Materials | Discovered exit to Materials (range 16) 8607 | -9/Materials | Lost 3 parts (1n2u) 12085 | -9/Materials | Entered Mines 12228 | -9/Mines | Deemed a non-threat by the Exiles lab entrance 12228 | -9/Mines | Discovered new exit (range 5) 12369 | -9/Mines | Discovered exit to Materials (range 10) 13072 | -9/Mines | Discovered exit to Materials (range 5) 13694 | -9/Mines | Met a Derelict shopkeep closing up shop 13970 | -9/Mines | Found the Drone Emporium 13984 | -9/Mines | Found Prototype Device 13984 | -9/Mines | Identified Decoy Drone Bay 14199 | -9/Mines | Entered Exiles 14279 | -9/Exiles | Met 8R-AWN 14334 | -9/Exiles | Met EX-HEX 14427 | -9/Exiles | Met EX-BIN 14612 | -9/Exiles | Met EX-DEC 14631 | -9/Exiles | Learned location of Zion (-6) 14798 | -9/Exiles | Discovered new exit (range 12) 15131 | -9/Exiles | Aligned with FarCom system 15134 | -9/Exiles | Given EX-Vault access code 15211 | -9/Exiles | Opened EX-Vault 15236 | -9/Exiles | Found Army-in-a-Box 15333 | -9/Exiles | Warned to stay clear of 0b10 Research branches 15548 | -9/Exiles | Discovered new exit (range 14) 15868 | -9/Exiles | Build established: Mutant 16883 | -9/Exiles | Attacked by the Exiles 17043 | -9/Exiles | Destroyed 8R-AWN 17049 | -9/Exiles | Found Prototype Device 17049 | -9/Exiles | Identified AS-neutralizer No. 17b 17063 | -9/Exiles | Found Prototype Processor 17690 | -9/Exiles | Build established: Scavenger-Mutant 18006 | -9/Exiles | Core integrity fell below 50% 18081 | -9/Exiles | Destroyed EX-BIN 18145 | -9/Exiles | Lost 3 parts (1p1n1u) 18208 | -9/Exiles | Destroyed EX-DEC 18277 | -9/Exiles | Found Prototype Device 18277 | -9/Exiles | Identified System Purifier 18298 | -9/Exiles | Build established: Mutant 18455 | -9/Exiles | Destroyed EX-HEX 18585 | -9/Exiles | Found Prototype Processor 18623 | -9/Exiles | Identified Exp. Core Analyzer 18954 | -9/Exiles | Found Prototype Protection 18958 | -9/Exiles | Identified 8R-AWN's Armor/EX 18961 | -9/Exiles | Identified Exp. Targeting Computer 19838 | -9/Exiles | Found Deploy-a-Sentry 20421 | -9/Exiles | Found 0b10 Alert Chip 20853 | -9/Exiles | Stole three prototypes: 0b10 Alert Chip, Army-in-a-Box, Deploy-a-Sentry 20853 | -9/Exiles | Entered Mines 21074 | -8/Mines | Core integrity fell below 20% 21292 | -8/Mines | Discovered exit to Materials (range 9) 21923 | -8/Mines | Discovered exit to Materials (range 8) 21933 | -8/Mines | Build established: Scavenger-Mutant 22690 | -8/Mines | DAS Turret deployed 23193 | -8/Mines | System corruption reached 10% 23193 | -8/Mines | Entered Materials 23193 | -8/Materials | Evolved 2 slots: Utility x2 23338 | -8/Materials | Discovered new exit (range 13) 23633 | -8/Materials | Lost 5 parts (2n2u1w) 24173 | -8/Materials | Discovered new exit (range 4) 24365 | -8/Materials | Central database locked down 25169 | -8/Materials | Identified exit to Storage 25966 | -8/Materials | Discovered new exit (range 12) 27467 | -8/Materials | Lost 3 parts (1p1u1w) 27627 | -8/Materials | Discovered new exit (range 16) 28336 | -8/Materials | Repaired Exp. Heat Sink 29082 | -8/Materials | Repaired Hrd. Heavy Armor Plating 29191 | -8/Materials | Repaired System Purifier 30158 | -8/Materials | Build established: Mutant 30470 | -8/Materials | Build established: Scavenger-Mutant 31691 | -8/Materials | Entered Storage 33434 | -8/Storage | Discovered new exit (range 16) 33981 | -8/Storage | Core integrity fell below 50% 34497 | -8/Storage | Found Prototype Launcher 34497 | -8/Storage | Identified Gui. Missile Launcher 35615 | -8/Storage | Repaired Hrd. Heavy Armor Plating 36179 | -8/Storage | Repaired Reactive Plating 36257 | -8/Storage | Build established: Mutant 36270 | -8/Storage | Repaired Exp. Heat Sink 36830 | -8/Storage | Found Exp. Targeting Computer 37302 | -8/Storage | Entered Factory 37302 | -7/Factory | Evolved 2 slots: Utility x2 37376 | -7/Factory | Build established: Scavenger-Mutant 37686 | -7/Factory | Build established: Mutant 37932 | -7/Factory | Discovered new exit (range 14) 37965 | -7/Factory | Identified exit to Lower Caves 38452 | -7/Factory | Entered Lower Caves 38452 | -7/Lower Caves | Accompanied by 8 allies 38454 | -7/Lower Caves | Attracted the attention of an 0b10 checkpoint 38711 | -7/Lower Caves | Spotted B-75 Beast 40080 | -7/Lower Caves | Encountered a Warlord checkpoint 40308 | -7/Lower Caves | Build established: Scavenger-Mutant 40446 | -7/Lower Caves | Discovered new exit (range 13) 40612 | -7/Lower Caves | Build established: Mutant 40851 | -7/Lower Caves | Entered another Lower Caves area 40851 | -7/Lower Caves | Accompanied by 10 allies 40861 | -7/Lower Caves | Discovered new exit (range 21) 41388 | -7/Lower Caves | Discovered new exit (range 8) 41429 | -7/Lower Caves | Attracted the attention of an 0b10 outpost 41574 | -7/Lower Caves | Learned Factory terminal intel 41843 | -7/Lower Caves | Learned Research trap positions 41843 | -7/Lower Caves | Learned Factory emergency access door positions 41843 | -7/Lower Caves | Learned Research security intel 41843 | -7/Lower Caves | Learned Armory garrison access intel 42273 | -7/Lower Caves | Spotted VH-VDN(f) 42273 | -7/Lower Caves | Spotted WF-BCV(f) 42274 | -7/Lower Caves | Encountered a Master Thief 42274 | -7/Lower Caves | Encountered a Master Thief 42274 | -7/Lower Caves | Spotted A7-BZN(f) 42275 | -7/Lower Caves | Encountered a Master Thief 42284 | -7/Lower Caves | Allies destroyed VH-VDN(f) 42289 | -7/Lower Caves | Allies destroyed WF-BCV(f) 42291 | -7/Lower Caves | Allies destroyed A7-BZN(f) 42627 | -7/Lower Caves | Build established: Scavenger-Mutant 42761 | -7/Lower Caves | Entered Data Miner 42761 | -7/Data Miner | Accompanied by 1 ally 42761 | -7/Data Miner | Discovered new exit (range 6) 42792 | -7/Data Miner | Met Data Miner 42855 | -7/Data Miner | Learned location of Section 7 (-2) 42855 | -7/Data Miner | Acquired the access code to Warlord's prototype stash 42880 | -7/Data Miner | Received God Mode back door access code from Data Miner 43210 | -7/Data Miner | Build established: Mutant 43973 | -7/Data Miner | Data Conduit disabled 44033 | -7/Data Miner | Found Prototype Device 44033 | -7/Data Miner | Identified Exp. Thermal Shield 44054 | -7/Data Miner | Self-destructed Last Messages --------------- 43984_ Army Drone destroyed. 43987_ Enhanced Grunt destroyed. 43989_ Army Drone destroyed. 43992_ Enhanced Grunt destroyed. 43995_ Army Drone retrieved by Army-in-a-Box. 44012_ Acquired 14 matter. 44015_ Acquired 2 matter. 44028_ Dropped Army-in-a-Box. 44029_ Acquired Prototype Storage. 44029_ Identified Adv. Energy Well. 44030_ Dropped Adv. Energy Well. 44033_ Acquired Prototype Device. 44033_ Identified Exp. Thermal Shield. 44034_ Dropped Exp. Thermal Shield. 44042_ Dropped Hrd. Heavy Armor Plating. 44043_ Acquired Prototype Leg. 44043_ Identified Enh. Flexi-carbon Leg. 44044_ Dropped Enh. Flexi-carbon Leg. 44047_ Acquired Prototype Energy Cannon. 44047_ Identified Neutron Cannon. Map ----- +----------------------------------------------------+ | | | | | | | | | | | | | | | | | | | | | | | | | | | | | | | ????????????????????????????????????????????????? | | ????????????????????????????????????????????????? | | ????????????????????????????????????????????????? | | ????????????????????????????????????????????????? | | ????????????????????????????????????####????????? | | ?????###############????#########?### #????????? | | ????"""""""""""""""######%# #]#]### #????????? | | ???""""""""" """"""""#=%!=%#%## < ##????????? | | ??"""""""""" !!!=! ######???? | | ??""""""" !! #???? | | ??""""""" %@ ! #???? | | ??""""" % #???? | | ??""""""" %%% %% % ##???? | | ??""""""" """ """""#####????? | | ??"""""""" """"#;#;;;;;#######????????? | | ???""""""" """""### # ## #??????????????? | | ????"""""""" "#####?# #######??????????????? | | ?????######"## "#?????###????????????????????? | | ??????????#"###! "#????????????????????????????? | | ??????????#"### ! "#????????????????????????????? | | ??????????#"## !!!"#????????????????????????????? | | ??????????#"## !*="#????????????????????????????? | | ????????????# !=!"#????????????????????????????? | | ????????????### !]"#????????????????????????????? | | ??????????????#]]]"##???????????????????????????? | | ?????????????## ]/""#???????????????????????????? | | ??????????#?## ""#???????????????????????????? | | ????????"##"#"X ""#???????????????????????????? | | ????????"""""" "####????????????????????????? | | ????????#""""" X"""""????????????????????????? | | ????????###"#"X "##"#????????????????????????? | | ??????????#?## X""""#????????????????????????? | | ?????????????## "##"#????????????????????????? | | ??????????????#######???????????????????????????? | | ????????????????????????????????????????????????? | +----------------------------------------------------+ Best States ------------- Heat Dissipation 60 Energy Generation 19 Energy Capacity 780 Matter Stores 300 Matter Capacity 300 Sight Range 16 Terrain Scan Density 10 Jamming Range 16 Armor Coverage 900 Resistance: KI 20 Resistance: EX 90 Weapon Shielding 66 Evasion (%) 40 Targeting Accuracy 24 Recoil Reduction 2 Offensive Hacking 10 Authchip Count 2 Item Schematics ----------------- Signal Interpreter | -10/Materials | Hacked Flight Unit | -10/Materials | Hacked Hcp. Storage Unit | -10/Materials | Hacked Arm. Wheel | -8/Storage | Hacked Combat Drone Bay | -7/Data Miner | Free Lgt. Regenerative Plating | -7/Data Miner | Free Cld. Aerolev Unit | -7/Data Miner | Free Exp. Targeting Computer | -7/Data Miner | Free Force Rifle | -7/Data Miner | Free Nuclear Pulse Array | -7/Data Miner | Free Adv. System Shield | -7/Data Miner | Free Imp. Remote Datajack | -7/Data Miner | Free Power Amplifier | -7/Data Miner | Free Hvy. Gauss Cannon | -7/Data Miner | Free Imp. Heavy Treads | -7/Data Miner | Free Robot Schematics ------------------ B-48 Gladiator | -7/Data Miner | Free H-66 Slayer | -7/Data Miner | Free A-15 Conveyor | -7/Data Miner | Free G-50 Soldier | -7/Data Miner | Free Fabricated ------------ Nothing Alien Tech Used ----------------- None Achievements -------------- None Challenges ------------ None Game ------ Seed SpikedAngularSlayer Manual? 0 Play Time 04:06:08 Cumulative 554.3 hours Start 2022.08.15 @ 23:05:37 End 2022.08.18 @ 01:19:57 Sessions 6 Manual Loads 0 Difficulty Rogue Special Mode None Game No. 51 Rogue 46 Adventurer 5 Explorer 0 Win Type - Total 22 Types 6/4/4/0/3/1/3/0/1 Lore% 84 Gallery% 93 Achievement% 82 Wizard Run 0 Options --------- ASCII 0 Keyboard 1 Movement Arrows Keybinds 0 Fullscreen 2 Font 18/SmallcapsGlow Map View 76x50 Tactical HUD 1 Map Filters NONE Filters NONE Steam 1 RUN: 05498528-3b34-4790-aa6d-1153ccb90e6c